{"text_format":"1","workbook":"xlsx","n_sheets":5,"sheets":["celel (2)","celel","SEZAİ BEY (2)","34ÜN DOĞ.","Eylül2019"],"not_rendered":{"charts":0,"images":0,"macros":1,"external_links":0,"defined_names":3,"comments":0,"pivot_tables":0},"unopened":[],"bounds":{"document_bytes":16777216,"sheet_cells":100000,"rows_first":2000,"rows_last":500,"rows_between":2000,"halvings":0,"cell_chars":16384,"cell_head_chars":4096},"cells_cut":0,"cells_raw":0,"read":"whole","date_system":"1900"}

{"sheet":"celel (2)","index":0,"n_rows":18,"n_cols":77,"rows_kept":18,"cut":false,"hidden":true,"merged":[[0,3,1,49],[3,0,8,0],[3,3,8,3],[3,4,8,4],[3,1,8,1],[3,11,5,74],[6,11,6,22],[3,2,8,2],[3,7,8,7],[3,8,8,8],[3,9,8,9],[6,35,6,46],[7,11,7,15],[7,16,7,22],[6,23,6,34],[13,50,13,75],[3,6,6,6],[3,5,8,5],[13,1,13,2],[7,54,7,60],[7,40,7,46],[6,47,6,60],[6,61,6,74],[7,35,7,39],[11,0,11,44],[7,6,8,6],[3,10,8,10],[12,31,12,37],[15,1,15,2],[15,50,15,75],[14,1,14,2],[16,50,16,75],[14,50,14,75],[17,1,17,2],[10,0,10,74],[0,75,0,76],[1,75,1,76],[1,0,1,2],[0,60,0,74],[1,60,1,74],[0,0,0,2],[7,61,7,67],[3,76,8,76],[3,75,8,75],[7,23,7,27],[7,47,7,53],[7,28,7,34],[7,68,7,74],[16,1,16,2]]}
["Okul veya Kurum ",null,null,"EK DERS  GÖREVİ  TAHAKKUK PUANTAJ ÇİZELGESİ",null,null,null,null,null,null,null,null,null,null,null,null,null,null,null,null,null,null,null,null,null,null,null,null,null,null,null,null,null,null,null,null,null,null,null,null,null,null,null,null,null,null,null,null,null,null,null,null,null,null,null,null,null,null,null,null,"Ait Olduğu Ay",null,null,null,null,null,null,null,null,null,null,null,null,null,null,"Haziran"]
["Celal Şükrü Sayınsoy İlköğretim Okulu",null,null,null,null,null,null,null,null,null,null,null,null,null,null,null,null,null,null,null,null,null,null,null,null,null,null,null,null,null,null,null,null,null,null,null,null,null,null,null,null,null,null,null,null,null,null,null,null,null,null,null,null,null,null,null,null,null,null,null,"Bütçe Yılı",null,null,null,null,null,null,null,null,null,null,null,null,null,null,2010]
[]
["Sıra No.","Ünvanı","Adı ve Soyadı","Maaş Karşılığı","Z.Ders Niteliği Ynt.Gr.","Ders Dışı Eğitim Çalışması(Egz)",null,"Ücretli Ders Görevi","Ders Dışı Hazırlık ve Planlama","Tam Gün tam Yıl","Toplam","G      Ü      N      L      E       R",null,null,null,null,null,null,null,null,null,null,null,null,null,null,null,null,null,null,null,null,null,null,null,null,null,null,null,null,null,null,null,null,null,null,null,null,null,null,null,null,null,null,null,null,null,null,null,null,null,null,null,null,null,null,null,null,null,null,null,null,null,null,null,"TOPLAM EKDERS SAATİ SAYISI","açıklama"]
[]
[]
[null,null,null,null,null,null,null,null,null,null,null,"1.Hafta",null,null,null,null,null,null,null,null,null,null,null,"2.Hafta",null,null,null,null,null,null,null,null,null,null,null,"3.Hafta",null,null,null,null,null,null,null,null,null,null,null,"4.Hafta",null,null,null,null,null,null,null,null,null,null,null,null,null,"5.Hafta"]
[null,null,null,null,null,null,"Reh /Sosyal Etk.(Kulüp Çalış)",null,null,null,null,"GÜNLER",null,null,null,null,"HESAPLAMA",null,null,null,null,null,null,"GÜNLER",null,null,null,null,"HESAPLAMA",null,null,null,null,null,null,"GÜNLER",null,null,null,null,"HESAPLAMA",null,null,null,null,null,null,"GÜNLER",null,null,null,null,null,null,"HESAPLAMA",null,null,null,null,null,null,"GÜNLER",null,null,null,null,null,null,"HESAPLAMA"]
[null,null,null,null,null,null,null,null,null,null,null,"2010-05-31",{"$f":"$L$9+1","v":"2010-06-01"},{"$f":"$L$9+2","v":"2010-06-02"},{"$f":"$L$9+3","v":"2010-06-03"},{"$f":"$L$9+4","v":"2010-06-04"},"Reh. Ve sos. Et","Ek Ders","Ders Dışı Eğ. Plan","Kurs ve Sınav Üc","DersDışıEğiÇalış","Nöbet","Haftalık Ek Ders",{"$f":"$L$9+7","v":"2010-06-07"},{"$f":"$L$9+8","v":"2010-06-08"},{"$f":"$L$9+9","v":"2010-06-09"},{"$f":"$L$9+10","v":"2010-06-10"},{"$f":"$L$9+11","v":"2010-06-11"},"Reh. Ve sos. Et","Ek Ders","Ders Dışı Eğ. Plan","Kurs ve Sınav Üc","DersDışıEğiÇalış","Tam Gün/Tam Yıl","Haftalık Ek Ders",{"$f":"$L$9+14","v":"2010-06-14"},{"$f":"$L$9+15","v":"2010-06-15"},{"$f":"$L$9+16","v":"2010-06-16"},{"$f":"$L$9+17","v":"2010-06-17"},{"$f":"$L$9+18","v":"2010-06-18"},"Reh. Ve sos. Et","Ek Ders","Ders Dışı Eğ. Plan","Kurs ve Sınav Üc","DersDışıEğiÇalış","Tam Gün/Tam Yıl","Haftalık Ek Ders",{"$f":"$L$9+21","v":"2010-06-21"},{"$f":"$L$9+22","v":"2010-06-22"},{"$f":"$L$9+23","v":"2010-06-23"},{"$f":"$L$9+24","v":"2010-06-24"},{"$f":"$L$9+25","v":"2010-06-25"},{"$f":"$L$9+26","v":"2010-06-26"},{"$f":"$L$9+26","v":"2010-06-26"},"Reh. Ve sos. Et","Ek Ders","Ders Dışı Eğ. Plan","Kurs ve Sınav Üc","DersDışıEğiÇalış","Tam Gün/Tam Yıl","Haftalık Ek Ders",{"$f":"$L$9+28","v":"2010-06-28"},{"$f":"$L$9+29","v":"2010-06-29"},{"$f":"$L$9+30","v":"2010-06-30"},{"$f":"$L$9+31","v":"2010-07-01"},{"$f":"$L$9+32","v":"2010-07-02"},{"$f":"$L$9+33","v":"2010-07-03"},{"$f":"$L$9+34","v":"2010-07-04"},"Reh. Ve sos. Et","Ek Ders","Ders Dışı Eğ. Plan","Kurs ve Sınav Üc","DersDışıEğiÇalış","Tam Gün/Tam Yıl","Haftalık Ek Ders"]
[1,"Öğretmen","Sefa ATİK",15,null,null,2,13,3,null,18,6,5,5,6,6,null,null,null,5,null,10,33,6,5,5,6,6,null,null,null,null,null,10,28,6,5,5,6,6,null,null,null,null,null,null,18,3,3,3,3,3,null,null,null,null,null,null,null,null,15,null,null,null,null,null,null,null,null,null,null,null,null,null,0,{"$f":"BW10+BI10+AU10+AI10+W10","v":94}]
["TOPLAM:",null,null,null,null,null,null,null,null,null,null,null,null,null,null,null,null,null,null,null,null,null,null,null,null,null,null,null,null,null,null,null,null,null,null,null,null,null,null,null,null,null,null,null,null,null,null,null,null,null,null,null,null,null,null,null,null,null,null,null,null,null,null,null,null,null,null,null,null,null,null,null,null,null,null,{"$f":"SUM(BX10:BX10)","v":94}]
["Yukaıda belirtilen görevlilerce 2010 Yılı Haziran ayında 94 saat ek ders okutulmuştur."]
[null,null,null,null,null,null,null,null,null,null,null,null,null,null,null,null,null,null,null,null,null,null,null,null,null,null,null,null,null,null,null,"2010-06-30"]
[null,"…………….İmza………….",null,null,null,null,null,null,null,null,null,null,null,null,null,null,null,null,null,null,null,null,null,null,null,null,null,null,null,null,null,null,null,null,null,null,null,null,null,null,null,null,null,null,null,null,null,null,null,null,"…… İMZA  ……"]
[null,"Düzenleyen",null,null,null,null,null,null,null,null,null,null,null,null,null,null,null,null,null,null,null,null,null,null,null,null,null,null,null,null,null,null,null,null,null,null,null,null,null,null,null,null,null,null,null,null,null,null,null,null,"Gerçekleştirme Görevlisi"]
[null,null,null,null,null,null,null,null,null,null,null,null,null,null,null,null,null,null,null,null,null,null,null,null,null,null,null,null,null,null,null,null,null,null,null,null,null,null,null,null,null,null,null,null,null,null,null,null,null,null,"Ömer AKTÜRK"]
[null,"Güray YILDIZ",null,null,null,null,null,null,null,null,null,null,null,null,null,null,null,null,null,null,null,null,null,null,null,null,null,null,null,null,null,null,null,null,null,null,null,null,null,null,null,null,null,null,null,null,null,null,null,null,"Okul Müdürü"]
[null,"Müdür Yard."]

{"sheet":"celel","index":1,"n_rows":46,"n_cols":77,"rows_kept":46,"cut":false,"hidden":true,"merged":[[45,1,45,2],[38,0,38,74],[0,75,0,76],[1,75,1,76],[1,0,1,2],[0,60,0,74],[1,60,1,74],[0,0,0,2],[7,61,7,67],[3,76,8,76],[3,75,8,75],[7,23,7,27],[7,47,7,53],[7,28,7,34],[7,68,7,74],[44,1,44,2],[43,1,43,2],[43,50,43,75],[42,1,42,2],[44,50,44,75],[42,50,42,75],[41,50,41,75],[3,6,6,6],[3,5,8,5],[41,1,41,2],[7,54,7,60],[7,40,7,46],[6,47,6,60],[6,61,6,74],[7,35,7,39],[39,0,39,44],[40,31,40,37],[7,6,8,6],[3,10,8,10],[0,3,1,49],[3,0,8,0],[3,3,8,3],[3,4,8,4],[3,1,8,1],[3,11,5,74],[6,11,6,22],[3,2,8,2],[3,7,8,7],[3,8,8,8],[3,9,8,9],[6,35,6,46],[7,11,7,15],[7,16,7,22],[6,23,6,34]]}
["Okul veya Kurum ",null,null,"EK DERS  GÖREVİ  TAHAKKUK PUANTAJ ÇİZELGESİ",null,null,null,null,null,null,null,null,null,null,null,null,null,null,null,null,null,null,null,null,null,null,null,null,null,null,null,null,null,null,null,null,null,null,null,null,null,null,null,null,null,null,null,null,null,null,null,null,null,null,null,null,null,null,null,null,"Ait Olduğu Ay",null,null,null,null,null,null,null,null,null,null,null,null,null,null,"Haziran"]
["Celal Şükrü Sayınsoy İlköğretim Okulu",null,null,null,null,null,null,null,null,null,null,null,null,null,null,null,null,null,null,null,null,null,null,null,null,null,null,null,null,null,null,null,null,null,null,null,null,null,null,null,null,null,null,null,null,null,null,null,null,null,null,null,null,null,null,null,null,null,null,null,"Bütçe Yılı",null,null,null,null,null,null,null,null,null,null,null,null,null,null,2010]
[]
["Sıra No.","Ünvanı","Adı ve Soyadı","Maaş Karşılığı","Z.Ders Niteliği Ynt.Gr.","Ders Dışı Eğitim Çalışması(Egz)",null,"Ücretli Ders Görevi","Ders Dışı Hazırlık ve Planlama","Tam Gün tam Yıl","Toplam","G      Ü      N      L      E       R",null,null,null,null,null,null,null,null,null,null,null,null,null,null,null,null,null,null,null,null,null,null,null,null,null,null,null,null,null,null,null,null,null,null,null,null,null,null,null,null,null,null,null,null,null,null,null,null,null,null,null,null,null,null,null,null,null,null,null,null,null,null,null,"TOPLAM EKDERS SAATİ SAYISI","açıklama"]
[]
[]
[null,null,null,null,null,null,null,null,null,null,null,"1.Hafta",null,null,null,null,null,null,null,null,null,null,null,"2.Hafta",null,null,null,null,null,null,null,null,null,null,null,"3.Hafta",null,null,null,null,null,null,null,null,null,null,null,"4.Hafta",null,null,null,null,null,null,null,null,null,null,null,null,null,"5.Hafta"]
[null,null,null,null,null,null,"Reh /Sosyal Etk.(Kulüp Çalış)",null,null,null,null,"GÜNLER",null,null,null,null,"HESAPLAMA",null,null,null,null,null,null,"GÜNLER",null,null,null,null,"HESAPLAMA",null,null,null,null,null,null,"GÜNLER",null,null,null,null,"HESAPLAMA",null,null,null,null,null,null,"GÜNLER",null,null,null,null,null,null,"HESAPLAMA",null,null,null,null,null,null,"GÜNLER",null,null,null,null,null,null,"HESAPLAMA"]
[null,null,null,null,null,null,null,null,null,null,null,"2010-05-31",{"$f":"$L$9+1","v":"2010-06-01"},{"$f":"$L$9+2","v":"2010-06-02"},{"$f":"$L$9+3","v":"2010-06-03"},{"$f":"$L$9+4","v":"2010-06-04"},"Reh. Ve sos. Et","Ek Ders","Ders Dışı Eğ. Plan","Kurs ve Sınav Üc","DersDışıEğiÇalış","Nöbet","Haftalık Ek Ders",{"$f":"$L$9+7","v":"2010-06-07"},{"$f":"$L$9+8","v":"2010-06-08"},{"$f":"$L$9+9","v":"2010-06-09"},{"$f":"$L$9+10","v":"2010-06-10"},{"$f":"$L$9+11","v":"2010-06-11"},"Reh. Ve sos. Et","Ek Ders","Ders Dışı Eğ. Plan","Kurs ve Sınav Üc","DersDışıEğiÇalış","Tam Gün/Tam Yıl","Haftalık Ek Ders",{"$f":"$L$9+14","v":"2010-06-14"},{"$f":"$L$9+15","v":"2010-06-15"},{"$f":"$L$9+16","v":"2010-06-16"},{"$f":"$L$9+17","v":"2010-06-17"},{"$f":"$L$9+18","v":"2010-06-18"},"Reh. Ve sos. Et","Ek Ders","Ders Dışı Eğ. Plan","Kurs ve Sınav Üc","DersDışıEğiÇalış","Tam Gün/Tam Yıl","Haftalık Ek Ders",{"$f":"$L$9+21","v":"2010-06-21"},{"$f":"$L$9+22","v":"2010-06-22"},{"$f":"$L$9+23","v":"2010-06-23"},{"$f":"$L$9+24","v":"2010-06-24"},{"$f":"$L$9+25","v":"2010-06-25"},{"$f":"$L$9+26","v":"2010-06-26"},{"$f":"$L$9+26","v":"2010-06-26"},"Reh. Ve sos. Et","Ek Ders","Ders Dışı Eğ. Plan","Kurs ve Sınav Üc","DersDışıEğiÇalış","Tam Gün/Tam Yıl","Haftalık Ek Ders",{"$f":"$L$9+28","v":"2010-06-28"},{"$f":"$L$9+29","v":"2010-06-29"},{"$f":"$L$9+30","v":"2010-06-30"},{"$f":"$L$9+31","v":"2010-07-01"},{"$f":"$L$9+32","v":"2010-07-02"},{"$f":"$L$9+33","v":"2010-07-03"},{"$f":"$L$9+34","v":"2010-07-04"},"Reh. Ve sos. Et","Ek Ders","Ders Dışı Eğ. Plan","Kurs ve Sınav Üc","DersDışıEğiÇalış","Tam Gün/Tam Yıl","Haftalık Ek Ders"]
[1,"Müdür","Ömer AKTÜRK",null,20,null,null,null,null,null,20,null,4,4,4,4,null,null,null,10,null,null,26,4,4,4,4,4,null,null,null,5,null,null,25,4,4,4,4,4,null,null,null,null,null,null,{"$f":"AN10+AM10+AL10+AK10+AJ10","v":20},4,4,4,4,4,null,null,null,null,null,null,null,null,{"$f":"AZ10+AY10+AX10+AW10+AV10","v":20},4,4,4,null,null,null,null,null,null,null,null,null,null,{"$f":"BN10+BM10+BL10+BK10+BJ10","v":12},{"$f":"BW10+BI10+AU10+AI10+W10","v":103}]
[2,"Mdr.Yard.","Adile SERT",null,18,null,null,null,null,null,18,null,0,0,3,4,null,null,null,10,null,null,17,4,3,4,3,4,null,null,null,5,null,null,23,4,3,4,3,4,null,null,null,null,null,null,{"$f":"AN11+AM11+AL11+AK11+AJ11","v":18},4,3,4,3,4,null,null,null,null,null,null,null,null,{"$f":"AZ11+AY11+AX11+AW11+AV11","v":18},4,3,4,null,null,null,null,null,null,null,null,null,null,{"$f":"BN11+BM11+BL11+BK11+BJ11","v":11},{"$f":"BW11+BI11+AU11+AI11+W11","v":87}]
[3,"Mdr.Yard.","Güray YILDIZ",null,18,null,null,null,null,null,18,null,3,4,3,4,null,null,null,10,null,null,24,4,3,4,3,4,null,null,null,5,null,null,23,4,3,4,3,4,null,null,null,null,null,null,18,4,3,4,3,4,null,null,null,null,null,null,null,null,18,4,3,4,null,null,null,null,null,null,null,null,null,null,11,{"$f":"BW12+BI12+AU12+AI12+W12","v":94}]
[4,"Öğretmen","Ebru AKBAYRAK",15,null,null,2,3,2,null,7,null,6,4,6,6,null,null,null,15,null,null,26,6,4,6,6,null,null,null,null,10,null,null,21,6,4,6,6,null,null,null,null,30,null,null,41,3,3,3,3,3,null,null,null,null,null,null,null,null,15,3,3,3,null,null,null,null,null,null,null,null,null,null,9,{"$f":"BW13+BI13+AU13+AI13+W13","v":112}]
[5,"Öğretmen","Rukiye ARSLANBULUT",15,null,null,2,13,3,null,18,5,6,5,6,6,null,null,null,5,null,null,23,6,6,5,6,null,null,null,null,null,null,null,11,5,6,5,6,6,null,null,null,null,null,null,18,3,3,3,3,3,null,null,null,null,null,null,null,null,15,3,3,3,null,null,null,null,null,null,null,null,null,null,9,{"$f":"BW14+BI14+AU14+AI14+W14","v":76}]
[6,"Öğretmen","Cemile Özlem AYDIN",15,null,null,2,1,1,null,4,1,5,3,5,2,null,null,null,null,null,null,4,1,5,3,5,2,null,null,null,null,null,null,4,1,5,3,5,2,null,null,null,null,null,null,4,null,null,null,null,null,null,null,null,null,null,null,null,null,0,3,3,3,null,null,null,null,null,null,null,null,null,null,9,{"$f":"BW15+BI15+AU15+AI15+W15","v":21}]
[7,"Öğretmen","Burcu BALDAN",15,null,null,1,1,1,null,3,null,6,5,3,null,null,null,null,null,null,null,2,null,6,5,3,null,null,null,null,null,null,null,2,null,6,5,3,null,null,null,null,null,null,null,2,3,3,3,3,3,null,null,null,null,null,null,null,null,15,3,3,3,null,null,null,null,null,null,null,null,null,null,9,30]
[8,"Öğretmen","Hülya BÖLÜKBAŞ",18,null,null,null,12,3,null,15,6,6,6,6,6,null,null,null,5,null,null,20,6,6,6,6,6,null,null,null,null,null,null,15,6,6,6,6,6,null,null,null,null,null,null,15,3,3,3,3,3,null,null,null,null,null,null,null,null,15,3,3,3,null,null,null,null,null,null,null,null,null,null,9,74]
[9,"Öğretmen","Hülya BURULDAY",18,null,null,null,12,3,null,15,6,6,6,6,6,null,null,null,5,null,null,20,6,6,6,6,6,null,null,null,null,null,null,15,6,6,6,6,6,null,null,null,null,null,null,15,3,3,3,3,3,null,null,null,null,null,null,null,null,15,3,3,3,null,null,null,null,null,null,null,null,null,null,9,74]
[10,"Öğretmen","Süleyman BÜYÜKKARCI",15,null,null,2,3,2,null,7,6,3,null,4,5,null,null,null,null,null,null,7,6,3,null,4,5,null,null,null,null,null,null,7,6,3,null,4,5,null,null,null,null,null,null,7,null,null,null,null,null,null,null,null,null,null,null,null,null,null,null,null,null,null,null,null,null,null,null,null,null,null,null,null,21]
[11,"Öğretmen","Nurcan ÇETİN",15,null,null,2,3,2,null,7,null,6,4,2,6,null,null,null,null,null,null,7,null,6,4,2,6,null,null,null,null,null,null,7,null,6,4,2,6,null,null,null,null,null,null,7,3,3,3,3,3,null,null,null,null,null,null,null,null,15,3,3,3,null,null,null,null,null,null,null,null,null,null,9,45]
[12,"Öğretmen","Fadime GÜNDÜZ",18,null,null,null,12,3,null,15,6,6,6,6,6,null,null,null,5,null,null,20,6,6,6,6,6,null,null,null,null,null,null,15,6,6,6,6,6,null,null,null,null,null,null,15,3,3,3,3,3,null,null,null,null,null,null,null,null,15,3,3,3,null,null,null,null,null,null,null,null,null,null,9,74]
[13,"Öğretmen","Fatma IRK",18,null,null,null,12,3,null,15,6,6,6,6,6,null,null,null,null,null,null,15,6,6,6,6,6,null,null,null,null,null,null,15,6,6,6,6,6,null,null,null,null,null,null,15,3,3,3,3,3,null,null,null,null,null,null,null,null,15,3,3,3,null,null,null,null,null,null,null,null,null,null,9,69]
[14,"Öğretmen","Fatih İRKİN",18,null,null,null,12,3,null,15,6,6,6,6,6,null,null,null,5,null,null,20,6,6,6,6,6,null,null,null,null,null,null,15,6,6,6,6,6,null,null,null,null,null,null,15,3,3,3,3,3,null,null,null,null,null,null,null,null,15,3,3,3,null,null,null,null,null,null,null,null,null,null,9,74]
[15,"Öğretmen","Ünal KAHYA",18,null,null,null,12,3,null,15,6,6,6,6,6,null,null,null,null,null,null,15,6,6,6,6,6,null,null,null,null,null,null,15,6,6,6,6,6,null,null,null,null,null,null,15,3,3,3,3,3,null,null,null,null,null,null,null,null,15,3,3,3,null,null,null,null,null,null,null,null,null,null,9,69]
[16,"Öğretmen","Emine ÇELİ,KTÜRK KAYA",15,null,null,2,2,1,null,5,3,4,2,4,4,null,null,null,5,null,null,10,3,4,2,4,4,null,null,null,0,null,null,5,3,4,2,4,4,null,null,null,0,null,null,5,3,3,3,3,3,null,null,null,null,null,null,null,null,15,3,3,3,null,null,null,null,null,null,null,null,null,null,9,44]
[17,"Öğretmen","İbrahim ÖLMEZ",15,null,6,2,11,2,null,21,6,6,5,3,6,null,null,null,5,6,10,36,6,6,5,3,6,null,null,null,null,6,10,31,6,6,5,3,6,null,null,null,null,6,null,21,3,3,3,3,3,null,null,null,null,null,null,null,null,15,3,3,3,null,null,null,null,null,null,null,null,null,null,9,{"$f":"BW26+BI26+AU26+AI26+W26","v":112}]
[18,"Öğretmen","Turgut ÖZCAN",18,null,null,null,12,3,null,15,6,6,6,6,6,null,null,null,5,null,null,20,6,6,6,6,null,null,null,null,null,null,null,8,6,6,6,6,6,null,null,null,null,null,null,15,3,3,3,3,3,null,null,null,null,null,null,null,null,15,3,3,3,null,null,null,null,null,null,null,null,null,null,9,67]
[19,"Öğretmen","Çetin ÖZOĞLU",15,null,null,2,5,2,null,9,4,6,3,6,1,null,null,null,5,null,null,14,4,6,3,6,1,null,null,null,null,null,null,9,4,6,3,6,1,null,null,null,null,null,null,9,3,3,3,3,3,null,null,null,null,null,null,null,null,15,3,3,3,null,null,null,null,null,null,null,null,null,null,9,56]
[20,"Öğretmen","Faİze SAVAŞCIOĞLU",18,null,null,null,12,3,null,15,6,6,6,6,6,null,null,null,null,null,null,15,6,6,6,6,6,null,null,null,null,null,null,15,6,6,6,6,6,null,null,null,null,null,null,15,3,3,3,3,3,null,null,null,null,null,null,null,null,15,null,null,null,null,null,null,null,null,null,null,null,null,null,null,60]
[21,"Öğretmen","Ali ŞAHİN",18,null,null,null,12,3,null,15,6,6,6,6,6,null,null,null,null,null,null,15,6,6,6,6,6,null,null,null,null,null,null,15,6,6,6,6,6,null,null,null,null,null,null,15,3,3,3,3,3,null,null,null,null,null,null,null,null,15,3,3,3,null,null,null,null,null,null,null,null,null,null,9,69]
[22,"Öğretmen","Ercan TOY",18,null,null,6,12,3,null,21,6,6,6,6,6,null,null,null,5,6,null,26,6,6,6,6,6,null,null,null,null,6,null,21,6,6,6,6,6,null,null,null,null,6,null,21,3,3,3,3,3,null,null,null,null,null,null,null,null,15,3,3,3,null,null,null,null,null,null,null,null,null,null,9,92]
[23,"Öğretmen","Ahmet TUNÇ",18,null,null,6,12,3,null,21,6,6,6,6,6,null,null,null,5,6,null,26,6,6,6,6,6,null,null,null,null,6,null,21,6,6,6,6,6,null,null,null,null,6,null,21,3,3,3,3,3,null,null,null,null,null,null,null,null,15,3,3,3,null,null,null,null,null,null,null,null,null,null,9,92]
[24,"Öğretmen","Yaşar TÜRKMEN",18,null,null,6,12,3,null,21,6,6,6,6,6,null,null,null,5,6,null,26,6,6,6,6,6,null,null,null,null,6,null,21,6,6,6,6,6,null,null,null,null,2,null,17,3,3,3,3,3,null,null,null,null,null,null,null,null,15,3,3,3,null,null,null,null,null,null,null,null,null,null,9,88]
[25,"Öğretmen","İbrahim UYSAL",18,null,null,null,12,3,null,15,6,6,6,6,6,null,null,null,null,null,null,15,6,6,6,0,0,null,null,null,null,null,null,1,null,6,6,6,6,null,null,null,null,null,null,8,3,3,3,3,3,null,null,null,null,null,null,null,null,15,3,3,3,null,null,null,null,null,null,null,null,null,null,9,48]
[26,"Öğretmen","Serhan YEYEN",15,null,null,2,13,3,null,18,5,6,5,6,6,null,null,null,5,null,null,23,5,6,5,6,6,null,null,null,null,null,null,18,5,6,5,6,6,null,null,null,null,null,null,18,3,3,3,3,3,null,null,null,null,null,null,null,null,15,3,3,3,null,null,null,null,null,null,null,null,null,null,9,83]
[27,"Öğretmen","Nurşen YÜKSEL",15,null,null,2,12,2,null,16,6,6,5,4,6,null,null,null,5,null,null,21,6,6,5,4,6,null,null,null,null,null,null,16,6,6,5,4,6,null,null,null,null,null,null,16,3,3,3,3,3,null,null,null,null,null,null,null,null,15,3,3,3,null,null,null,null,null,null,null,null,null,null,9,77]
[28,"Öğretmen","Hafize BUĞDAYCI",18,null,null,null,12,3,null,15,6,6,6,6,6,null,null,null,5,null,null,20,6,6,6,6,6,null,null,null,null,null,null,15,6,6,6,6,6,null,null,null,null,null,null,15,3,3,3,3,3,null,null,null,null,null,null,null,null,15,3,3,3,null,null,null,null,null,null,null,null,null,null,9,74]
[29,"Öğretmen","Merve Nurperi YÜCEBAŞ",15,null,null,2,1,1,null,4,6,null,2,4,4,null,null,null,5,null,null,9,6,null,2,4,4,null,null,null,null,null,null,4,6,null,2,4,4,null,null,null,null,null,null,4,3,3,3,3,3,null,null,null,null,null,null,null,null,15,3,3,3,null,null,null,null,null,null,null,null,null,null,9,41]
["TOPLAM:",null,null,null,null,null,null,null,null,null,null,null,null,null,null,null,null,null,null,null,null,null,null,null,null,null,null,null,null,null,null,null,null,null,null,null,null,null,null,null,null,null,null,null,null,null,null,null,null,null,null,null,null,null,null,null,null,null,null,null,null,null,null,null,null,null,null,null,null,null,null,null,null,null,null,{"$f":"SUM(BX10:BX38)","v":2026}]
["Yukaıda belirtilen görevlilerce 2010 Yılı Haziran ayında 2026saat ek ders okutulmuştur."]
[null,null,null,null,null,null,null,null,null,null,null,null,null,null,null,null,null,null,null,null,null,null,null,null,null,null,null,null,null,null,null,"2010-06-30"]
[null,"…………….İmza………….",null,null,null,null,null,null,null,null,null,null,null,null,null,null,null,null,null,null,null,null,null,null,null,null,null,null,null,null,null,null,null,null,null,null,null,null,null,null,null,null,null,null,null,null,null,null,null,null,"…… İMZA  ……"]
[null,"Düzenleyen",null,null,null,null,null,null,null,null,null,null,null,null,null,null,null,null,null,null,null,null,null,null,null,null,null,null,null,null,null,null,null,null,null,null,null,null,null,null,null,null,null,null,null,null,null,null,null,null,"Gerçekleştirme Görevlisi"]
[null,null,null,null,null,null,null,null,null,null,null,null,null,null,null,null,null,null,null,null,null,null,null,null,null,null,null,null,null,null,null,null,null,null,null,null,null,null,null,null,null,null,null,null,null,null,null,null,null,null,"Ömer AKTÜRK"]
[null,"Güray YILDIZ",null,null,null,null,null,null,null,null,null,null,null,null,null,null,null,null,null,null,null,null,null,null,null,null,null,null,null,null,null,null,null,null,null,null,null,null,null,null,null,null,null,null,null,null,null,null,null,null,"Okul Müdürü"]
[null,"Müdür Yard."]

{"sheet":"SEZAİ BEY (2)","index":2,"n_rows":18,"n_cols":44,"rows_kept":18,"cut":false,"hidden":true,"merged":[[7,36,7,38],[5,30,6,30],[14,18,14,24],[11,17,11,23],[13,18,13,24],[9,18,9,25],[8,36,8,38],[14,30,14,34],[9,36,9,38],[11,29,11,34],[13,29,13,34],[5,28,6,28],[0,0,0,35],[3,0,6,0],[3,1,4,4],[3,5,4,35],[5,11,6,11],[5,12,6,12],[5,13,6,13],[5,6,6,6],[1,0,1,3],[5,31,6,31],[5,4,6,4],[5,27,6,27],[5,34,6,34],[1,35,1,38],[2,35,2,38],[17,0,17,4],[14,15,14,16],[15,15,15,16],[8,1,8,4],[10,5,10,7],[9,12,9,13],[13,13,13,16],[9,0,9,3],[9,9,9,11],[9,14,9,17],[1,42,1,43],[10,18,10,22],[5,23,6,23],[5,24,6,24],[5,25,6,25],[5,26,6,26],[5,33,6,33],[3,36,6,38],[1,4,1,19],[5,17,6,17],[5,20,6,20],[5,10,6,10],[5,16,6,16],[5,18,6,18],[7,39,7,43],[5,32,6,32],[3,39,6,43],[10,12,10,14],[5,1,6,3],[7,1,7,3],[5,5,6,5],[5,9,6,9],[5,7,6,7],[5,8,6,8],[5,19,6,19],[5,21,6,21],[5,14,6,14],[5,15,6,15],[5,22,6,22],[5,29,6,29],[9,27,9,35],[5,35,6,35]]}
["EK DERS ÜCRETİ ÇİZELGESİ"]
["Okul veya Kurumu:",null,null,null,"Alaşehir İlçe Milli Eğitim Müdürlüğü",null,null,null,null,null,null,null,null,null,null,null,null,null,null,null,null,null,null,null,null,null,null,null,null,null,null,null,null,null,null,"Ait Olduğu Ay",null,null,null,null,null,null,5]
[null,null,null,null,null,null,null,null,null,null,null,null,null,null,null,null,null,null,null,null,null,null,null,null,null,null,null,null,null,null,null,null,null,null,null,"Bütçe Yılı",null,null,null,null,2,0,1,0]
["Sıra No ","Öğretmenin",null,null,null,"GÜNLÜK OKUTULAN EK DERS SAATLERİ",null,null,null,null,null,null,null,null,null,null,null,null,null,null,null,null,null,null,null,null,null,null,null,null,null,null,null,null,null,null,"Aylık Okuttuğu Ders Saat Toplamı",null,null,"İmza"]
[]
[null,"Adı Soyadı",null,null,"Branşı","2010-05-01",{"$f":"F6+1","v":"2010-05-02"},"2010-05-03","2010-05-04","2010-05-05","2010-05-06","2010-05-07","2010-05-08","2010-05-09","2010-05-10","2010-05-11","2010-05-12","2010-05-13","2010-05-14","2010-05-15","2010-05-16","2010-05-17","2010-05-18","2010-05-19","2010-05-20","2010-05-21","2010-05-22","2010-05-23","2010-05-24","2010-05-25","2010-05-26","2010-05-27","2010-05-28","2010-05-29","2010-05-30",{"$f":"AI6+1","v":"2010-05-31"}]
[]
[1,"Sezai ACARTÜRK",null,null,"Formatör \nÖğrt.",null,null,null,null,null,null,null,null,null,null,null,null,null,null,5,null,null,null,null,null,null,null,null,null,null,null,null,null,null,null,null,{"$f":"SUM(F8:AJ8)","v":5}]
[null,"TOPLAMLAR",null,null,null,{"$f":"F8","v":0},0,0,0,0,0,{"$f":"SUM(L8:L8)","v":0},{"$f":"M8","v":0},0,0,0,0,0,0,5,0,0,0,0,0,{"$f":"SUM(Z8:Z8)","v":0},{"$f":"SUM(AA8:AA8)","v":0},{"$f":"AB8","v":0},{"$f":"SUM(AC8:AC8)","v":0},{"$f":"AD8","v":0},0,0,0,0,0,null,{"$f":"SUM(F9:AJ9)","v":5}]
["Yukarıda belirtilen görevlilerce ",null,null,null,{"$f":"AQ2","v":5},{"$f":"AO3","v":2},{"$f":"AP3","v":0},{"$f":"AQ3","v":1},{"$f":"AR3","v":0},"ayında toplam",null,null,{"$f":"AK10","v":5},null,{"$f":"YAZIYLA(AK10)","v":{"$error":"#NAME?"}},null,null,null,"saat ek ders okutulmuştur.",null,null,null,null,null,null,null,null,"T O P L A M",null,null,null,null,null,null,null,null,{"$f":"AK9","v":5}]
[null,null,null,null,null,null,null,null,null,null,null,null,null,null,null,null,null,null,"…./06/2010"]
[null,null,null,null,null,null,null,null,null,null,null,null,null,null,null,null,null,"Düzenleyen"]
[]
[null,null,null,null,null,null,null,null,null,null,null,null,null,"        Adı Soyadı ",null,null,null,":","Ayhan YILMAZ"]
[null,null,null,null,null,null,null,null,null,null,null,null,null,null,null,"   Unvanı",null,":.","Şube Müdürü"]
[null,null,null,null,null,null,null,null,null,null,null,null,null,null,null,"   İmzası",null,":.........................................................................","............................................................."]
[]
["M.Y.H.B.Y. Örnek No: 15"]

{"sheet":"34ÜN DOĞ.","index":3,"n_rows":18,"n_cols":44,"rows_kept":18,"cut":false,"hidden":true,"merged":[[1,42,1,43],[10,18,10,22],[5,23,6,23],[5,24,6,24],[5,25,6,25],[5,26,6,26],[5,28,6,28],[5,35,6,35],[5,32,6,32],[5,31,6,31],[3,39,6,43],[7,39,7,43],[5,30,6,30],[17,0,17,4],[14,15,14,16],[15,15,15,16],[8,1,8,4],[10,5,10,7],[9,12,9,13],[13,13,13,16],[0,0,0,35],[3,0,6,0],[3,1,4,4],[3,5,4,35],[5,11,6,11],[5,12,6,12],[5,13,6,13],[5,14,6,14],[5,15,6,15],[5,29,6,29],[5,21,6,21],[5,22,6,22],[5,4,6,4],[5,5,6,5],[5,6,6,6],[5,9,6,9],[1,0,1,3],[7,1,7,3],[1,4,1,19],[5,10,6,10],[5,16,6,16],[5,17,6,17],[5,18,6,18],[5,19,6,19],[5,7,6,7],[5,8,6,8],[5,1,6,3],[14,18,14,24],[11,17,11,23],[13,18,13,24],[9,18,9,25],[1,35,1,38],[2,35,2,38],[7,36,7,38],[8,36,8,38],[3,36,6,38],[5,33,6,33],[5,34,6,34],[5,27,6,27],[5,20,6,20],[14,30,14,34],[9,36,9,38],[9,27,9,35],[11,29,11,34],[13,29,13,34],[9,0,9,3],[9,9,9,11],[10,12,10,14],[9,14,9,17]]}
["EK DERS ÜCRETİ ÇİZELGESİ"]
["Okul veya Kurumu:",null,null,null,"Alaşehir İlçe Milli Eğitim Müdürlüğü",null,null,null,null,null,null,null,null,null,null,null,null,null,null,null,null,null,null,null,null,null,null,null,null,null,null,null,null,null,null,"Ait Olduğu Ay",null,null,null,null,null,null,8]
[null,null,null,null,null,null,null,null,null,null,null,null,null,null,null,null,null,null,null,null,null,null,null,null,null,null,null,null,null,null,null,null,null,null,null,"Bütçe Yılı",null,null,null,null,2,0,1,0]
["Sıra No ","Öğretmenin",null,null,null,"GÜNLÜK OKUTULAN EK DERS SAATLERİ",null,null,null,null,null,null,null,null,null,null,null,null,null,null,null,null,null,null,null,null,null,null,null,null,null,null,null,null,null,null,"Aylık Okuttuğu Ders Saat Toplamı",null,null,"İmza"]
[]
[null,"Adı Soyadı",null,null,"Branşı","2010-08-01",{"$f":"F6+1","v":"2010-08-02"},"2010-08-03","2010-08-04","2010-08-05","2010-08-06","2010-08-07","2010-08-08","2010-08-09","2010-08-10","2010-08-11","2010-08-12","2010-08-13","2010-08-14","2010-08-15","2010-08-16","2010-08-17","2010-08-18","2010-08-19","2010-08-20","2010-08-21","2010-08-22","2010-08-23","2010-08-24","2010-08-25","2010-08-26","2010-08-27","2010-08-28","2010-08-29","2010-08-30","2010-08-31"]
[]
[1,"Ayhan YILMAZ",null,null,"Şube Müdürü",0,4,3,4,3,4,10,10,4,3,4,3,4,0,0,4,3,4,3,4,0,0,4,3,4,3,4,0,0,4,3,{"$f":"SUM(F8:AJ8)","v":99}]
[null,"TOPLAMLAR",null,null,null,{"$f":"F8","v":0},4,3,4,3,4,{"$f":"SUM(L8:L8)","v":10},{"$f":"M8","v":10},4,3,4,3,4,0,0,4,3,4,3,4,{"$f":"SUM(Z8:Z8)","v":0},{"$f":"SUM(AA8:AA8)","v":0},{"$f":"AB8","v":4},{"$f":"SUM(AC8:AC8)","v":3},{"$f":"AD8","v":4},3,4,0,0,4,{"$f":"SUM(AJ8)","v":3},{"$f":"SUM(F9:AJ9)","v":99}]
["Yukarıda belirtilen görevlilerce ",null,null,null,{"$f":"AQ2","v":8},{"$f":"AO3","v":2},{"$f":"AP3","v":0},{"$f":"AQ3","v":1},{"$f":"AR3","v":0},"ayında toplam",null,null,{"$f":"AK10","v":99},null,{"$f":"YAZIYLA(AK10)","v":{"$error":"#NAME?"}},null,null,null,"saat ek ders okutulmuştur.",null,null,null,null,null,null,null,null,"T O P L A M",null,null,null,null,null,null,null,null,{"$f":"AK9","v":99}]
[null,null,null,null,null,null,null,null,null,null,null,null,null,null,null,null,null,null,"…./08/2010"]
[null,null,null,null,null,null,null,null,null,null,null,null,null,null,null,null,null,"Düzenleyen"]
[]
[null,null,null,null,null,null,null,null,null,null,null,null,null,"        Adı Soyadı ",null,null,null,":","Ayhan YILMAZ"]
[null,null,null,null,null,null,null,null,null,null,null,null,null,null,null,"   Unvanı",null,":.","Şube Müdürü"]
[null,null,null,null,null,null,null,null,null,null,null,null,null,null,null,"   İmzası",null,":.........................................................................","............................................................."]
[]
["M.Y.H.B.Y. Örnek No: 15"]

{"sheet":"Eylül2019","index":4,"n_rows":19,"n_cols":38,"rows_kept":19,"cut":false,"hidden":false,"merged":[[6,34,6,37],[7,1,7,2],[10,29,10,33],[11,29,11,33],[1,0,2,1],[3,0,5,0],[0,0,0,37],[1,2,2,32],[3,1,4,2],[3,3,3,32],[3,33,5,33],[3,34,5,37],[4,3,4,32],[18,0,18,1],[7,34,7,37],[8,0,8,1],[8,2,8,4],[8,6,8,9],[8,10,8,11],[8,25,8,32],[14,29,14,33],[15,29,15,33],[8,12,8,24]]}
["ÜCRETLİ ÖĞRETMENLERE AİT DERS ÇİZELGESİ"]
["OKULUN ADI",null,"AYDOĞDU İLKOKULU",null,null,null,null,null,null,null,null,null,null,null,null,null,null,null,null,null,null,null,null,null,null,null,null,null,null,null,null,null,null,"Ait Olduğu Ay",null,null,0,9]
[null,null,null,null,null,null,null,null,null,null,null,null,null,null,null,null,null,null,null,null,null,null,null,null,null,null,null,null,null,null,null,null,null,"Bütçe Yılı",2,0,1,9]
["Sıra No ","Öğretmenin",null,"GÜNLÜK OKUTULAN EK DERS SAATLERİ",null,null,null,null,null,null,null,null,null,null,null,null,null,null,null,null,null,null,null,null,null,null,null,null,null,null,null,null,null,"TOPLAM","İMZA"]
[null,null,null,"EYLÜL"]
[null,"Adı Soyadı","Branşı","2019-09-01","2019-09-02","2019-09-03","2019-09-04","2019-09-05","2019-09-06","2019-09-07","2019-09-08","2019-09-09","2019-09-10","2019-09-11","2019-09-12","2019-09-13","2019-09-14","2019-09-15","2019-09-16","2019-09-17","2019-09-18","2019-09-19","2019-09-20","2019-09-21","2019-09-22","2019-09-23","2019-09-24","2019-09-25","2019-09-26","2019-09-27","2019-09-28","2019-09-29","2019-09-30"]
[1,"YASİN BİRCAN","SINIF ÖĞRETMENİ",null,null,null,null,null,null,null,null,6,6,6,6,6,null,null,6,6,6,6,6,null,null,6,6,6,6,6,null,null,6,{"$f":"SUM(D7:AG7)","v":96}]
[null,"TOPLAMLAR",null,null,null,null,null,null,null,null,null,null,null,null,null,null,null,null,null,null,null,null,null,null,null,null,null,null,null,null,null,null,null,{"$f":"SUM(AH7:AH7)","v":96}]
["Yukarıda belirtilen görevlilerce ",null,"1 - 30 Eylül 2019",null,null,null,"ayında toplam",null,null,null,{"$f":"AH9","v":96},null,{"$f":"YAZIYLA(AH9)","v":{"$error":"#NAME?"}},null,null,null,null,null,null,null,null,null,null,null,null,"T O P L A M",null,null,null,null,null,null,null,{"$f":"AH8","v":96}]
[]
[null,null,null,null,null,null,null,null,null,null,null,null,null,null,null,null,null,null,null,null,null,null,null,null,null,null,null,null,null,"2019-09-30"]
[null,null,null,null,null,null,null,null,null,null,null,null,null,null,null,null,null,null,null,null,null,null,null,null,null,null,null,null,null,"Düzenleyen"]
[]
[]
[null,null,null,null,null,null,null,null,null,null,null,null,null,null,null,null,null,null,null,null,null,null,null,null,null,null,null,null,null,"ÖZGE ÇELİKEL"]
[null,null,null,null,null,null,null,null,null,null,null,null,null,null,null,null,null,null,null,null,null,null,null,null,null,null,null,null,null,"OKUL MÜDÜRÜ"]
[null,null,null,null,null,null,null,null,null,null,null,"  "]
[]
["M.Y.H.B.Y. Örnek No: 15"]